bitfinex/quotes_BTCUSD_20240929
["timestamp","ask_amount","ask_price","bid_price","bid_amount"]
[1727583018826,0.83648897,65906.0,65905.0,0.000828]
[1727583019285,1.00158293,65906.0,65905.0,0.000828]
[1727583019495,0.84367755,65906.0,65905.0,0.000828]
[1727583020573,0.9142347,65906.0,65905.0,0.000828]
[1727583020791,0.70737357,65906.0,65905.0,0.000828]
[1727583022355,0.84356003,65906.0,65905.0,0.000828]
[1727583023720,0.88622447,65906.0,65905.0,0.000828]
[1727583023932,0.8838983,65906.0,65905.0,0.000828]
[1727583024363,0.7477463,65906.0,65905.0,0.000828]
[1727583027598,0.70508186,65906.0,65905.0,0.000828]
[1727583038409,0.70504773,65906.0,65905.0,0.000828]
[1727583041964,0.62864773,65906.0,65905.0,0.000828]
[1727583042171,0.74348284,65906.0,65905.0,0.000828]
[1727583047470,0.26658411,65898.0,65897.0,0.14399197]
[1727583048330,0.35842674,65898.0,65897.0,0.14399197]
[1727583049871,0.29037387,65898.0,65897.0,0.14399197]
[1727583050343,0.52766026,65898.0,65897.0,0.14399197]
[1727583050561,0.43692309,65898.0,65897.0,0.14399197]
[1727583051222,0.52766026,65898.0,65897.0,0.14399197]
[1727583052323,0.43692309,65898.0,65897.0,0.05159197]
[1727583052979,0.151756,65895.0,65894.0,0.0912]
[1727583053203,0.33471228,65895.0,65894.0,0.0912]
[1727583053419,0.26659111,65895.0,65894.0,0.0912]
[1727583053839,0.26659111,65895.0,65894.0,0.092028]
[1727583054345,0.50369117,65895.0,65894.0,0.092028]
[1727583054758,0.50369117,65895.0,65894.0,0.000828]
[1727583054759,0.50269117,65895.0,65894.0,0.000828]
[1727583055008,0.41786295,65895.0,65894.0,0.000828]
[1727583055445,0.53128441,65895.0,65894.0,0.000828]
[1727583056747,0.53528441,65895.0,65894.0,0.000828]
[1727583057376,0.42186295,65895.0,65894.0,0.000828]
[1727583060498,0.44303584,65895.0,65894.0,0.000828]
[1727583061317,0.44391466,65895.0,65894.0,0.000828]
[1727583063704,0.43791466,65895.0,65894.0,0.000828]
[1727583064428,0.44191466,65895.0,65894.0,0.000828]
[1727583064660,0.30531109,65895.0,65894.0,0.000828]
[1727583064886,0.30131109,65895.0,65894.0,0.000828]
[1727583065106,0.30331109,65895.0,65894.0,0.000828]
[1727583065536,0.4161462,65895.0,65894.0,0.000828]
[1727583065947,0.4191462,65895.0,65894.0,0.000828]
[1727583066177,0.4151462,65895.0,65894.0,0.000828]
[1727583066382,0.4201462,65895.0,65894.0,0.000828]
[1727583067447,0.42202697,65895.0,65894.0,0.000828]
[1727583068424,0.30719186,65895.0,65894.0,0.000828]
[1727583070996,0.30717451,65895.0,65894.0,0.000828]
[1727583071886,0.30417451,65895.0,65894.0,0.000828]
[1727583072096,0.29917451,65895.0,65894.0,0.000828]
[1727583072521,0.30417451,65895.0,65894.0,0.000828]
[1727583073179,0.30717451,65895.0,65894.0,0.000828]
[1727583078267,0.61670962,65895.0,65894.0,0.000828]
[1727583078910,0.52200962,65895.0,65894.0,0.000828]
[1727583079356,0.7489162,65895.0,65894.0,0.000828]
[1727583079602,0.52200962,65895.0,65894.0,0.000828]
[1727583080690,0.52165365,65895.0,65894.0,0.000828]
[1727583081981,0.54544523,65895.0,65894.0,0.000828]
[1727583085908,0.52165365,65895.0,65894.0,0.000828]
[1727583087691,0.51365365,65895.0,65894.0,0.000828]
[1727583087906,0.51965365,65895.0,65894.0,0.000828]
[1727583088124,0.52765365,65895.0,65894.0,0.000828]
[1727583090549,0.55144495,65895.0,65894.0,0.000828]
[1727583090764,0.52765365,65895.0,65894.0,0.000828]
[1727583093221,0.151765,65891.0,65890.0,0.07639202]
[1727583093437,0.29882754,65891.0,65890.0,0.07639202]
[1727583095252,0.30082754,65891.0,65890.0,0.07639202]
[1727583096100,0.30482754,65891.0,65890.0,0.07639202]
[1727583096328,0.30082754,65891.0,65890.0,0.07639202]
[1727583096748,0.30282754,65891.0,65890.0,0.07639202]
[1727583096958,0.30082754,65891.0,65890.0,0.07639202]
[1727583097171,0.30182754,65891.0,65890.0,0.07639202]
[1727583097594,0.30082754,65891.0,65890.0,0.07639202]
[1727583100395,0.30184178,65891.0,65890.0,0.07639202]
[1727583101483,0.30384178,65891.0,65890.0,0.07639202]
[1727583101915,0.30184178,65891.0,65890.0,0.07639202]
[1727583102346,0.29984178,65891.0,65890.0,0.07639202]
[1727583102582,0.30284178,65891.0,65890.0,0.07639202]
[1727583102826,0.29984178,65891.0,65890.0,0.07639202]
[1727583103261,0.30184178,65891.0,65890.0,0.07639202]
[1727583103713,0.30184178,65891.0,65890.0,0.07722002]
[1727583109155,0.29984178,65891.0,65890.0,0.07722002]
[1727583109368,0.30184178,65891.0,65890.0,0.07722002]
[1727583109804,0.29984178,65891.0,65890.0,0.07722002]
[1727583110557,0.30084178,65891.0,65890.0,0.07722002]
[1727583110767,0.29984178,65891.0,65890.0,0.07722002]
[1727583111183,0.32363279,65891.0,65890.0,0.07722002]
[1727583112287,0.29984178,65891.0,65890.0,0.07722002]
[1727583115551,0.32363267,65891.0,65890.0,0.07722002]
[1727583116636,0.32563267,65891.0,65890.0,0.07722002]
[1727583117273,0.17386767,65891.0,65890.0,0.07722002]
[1727583117505,0.17386767,65891.0,65890.0,0.17552002]
[1727583117739,0.15007678,65891.0,65890.0,0.23971428]
[1727583117991,0.11579588,65891.0,65890.0,0.23971428]
[1727583118246,0.26387266,65891.0,65890.0,0.23971428]
[1727583119421,0.26187266,65891.0,65890.0,0.23971428]
[1727583119655,0.41363766,65891.0,65890.0,0.23971428]
[1727583120100,0.41563766,65891.0,65890.0,0.23971428]
[1727583125522,0.41463766,65891.0,65890.0,0.23971428]
[1727583126002,0.41363766,65891.0,65890.0,0.23971428]
[1727583126677,0.29984178,65891.0,65890.0,0.23971428]
[1727583126925,0.41363766,65891.0,65890.0,0.23971428]
[1727583127535,0.30139008,65891.0,65890.0,0.23971428]
[1727583127746,0.4151461,65891.0,65890.0,0.23971428]
[1727583128390,0.30139008,65891.0,65890.0,0.23971428]
[1727583128627,0.4151461,65891.0,65890.0,0.23971428]
[1727583130430,0.30139008,65891.0,65890.0,0.23971428]
[1727583130648,0.4151461,65891.0,65890.0,0.23971428]
[1727583134712,0.30139008,65891.0,65890.0,0.23971428]
[1727583134944,0.30239008,65891.0,65890.0,0.23971428]
[1727583135165,0.4161461,65891.0,65890.0,0.23971428]
[1727583135616,0.2653811,65891.0,65890.0,0.23971428]
[1727583136061,0.30339008,65891.0,65890.0,0.23971428]
[1727583137000,0.4171461,65891.0,65890.0,0.23971428]
[1727583137900,0.30339008,65891.0,65890.0,0.23971428]
[1727583138349,0.002,65891.0,65890.0,0.23971428]
[1727583138565,0.09299739,65891.0,65890.0,0.23971428]
[1727583138777,0.2427959,65891.0,65890.0,0.23971428]
[1727583139878,0.24286977,65891.0,65890.0,0.23971428]
[1727583140156,0.09299739,65891.0,65890.0,0.23971428]
[1727583140391,0.002,65891.0,65890.0,0.23971428]
[1727583141405,0.15079908,65891.0,65890.0,0.23971428]
[1727583141951,0.14979908,65891.0,65890.0,0.23971428]
[1727583142369,0.15079908,65891.0,65890.0,0.23971428]
[1727583142593,0.24179647,65891.0,65890.0,0.23971428]
[1727583143215,0.15075104,65891.0,65890.0,0.23971428]
[1727583143442,0.15083203,65891.0,65890.0,0.39148228]
[1727583143654,0.15083203,65891.0,65890.0,0.23971428]
[1727583143865,0.24180428,65891.0,65890.0,0.23971428]
[1727583145203,0.24180428,65891.0,65890.0,0.39148228]
[1727583145853,0.24180428,65891.0,65890.0,0.23971428]
[1727583146537,0.24180428,65891.0,65890.0,0.39148228]
[1727583146750,0.24180428,65891.0,65890.0,0.23971428]
[1727583147589,0.24180428,65891.0,65890.0,0.39148228]
[1727583147994,0.24180428,65891.0,65890.0,0.23971428]
[1727583148213,0.24169945,65891.0,65890.0,0.23971428]
[1727583148425,0.24169945,65891.0,65890.0,0.39148228]
[1727583148645,0.24169945,65891.0,65890.0,0.23971428]
[1727583150833,0.24169945,65891.0,65890.0,0.14141428]
[1727583152346,0.15072279,65891.0,65890.0,0.14141428]
[1727583154500,0.15072279,65891.0,65890.0,0.1408293]
[1727583154721,0.15072279,65891.0,65890.0,0.13962492]
[1727583155618,0.14972279,65891.0,65890.0,0.13962492]
[1727583156977,0.15072279,65891.0,65890.0,0.13962492]
[1727583157394,0.14972279,65891.0,65890.0,0.13962492]
[1727583157841,0.15072279,65891.0,65890.0,0.13962492]
[1727583160173,0.30248779,65891.0,65890.0,0.13962492]
[1727583160393,0.41620861,65891.0,65890.0,0.06502226]
[1727583161042,0.41520861,65891.0,65890.0,0.06502226]
[1727583164356,0.41520861,65891.0,65890.0,0.06702226]
[1727583167858,0.41634886,65891.0,65890.0,0.002828]
[1727583168077,0.3025815,65891.0,65890.0,0.002828]
[1727583175747,0.30243563,65891.0,65890.0,0.002828]
[1727583179751,0.30343563,65891.0,65890.0,0.002828]
[1727583180388,0.30343563,65891.0,65890.0,0.000828]
[1727583180616,0.30543563,65891.0,65890.0,0.000828]
[1727583180854,0.30443563,65891.0,65890.0,0.000828]
[1727583181045,0.30343563,65891.0,65890.0,0.000828]
[1727583181311,0.30543563,65891.0,65890.0,0.000828]
[1727583185840,0.30443563,65891.0,65890.0,0.000828]
[1727583186107,0.30337289,65891.0,65890.0,0.000828]
[1727583186564,0.30237289,65891.0,65890.0,0.000828]
[1727583187022,0.30337289,65891.0,65890.0,0.003828]
[1727583187782,0.3043615,65891.0,65890.0,0.003828]
[1727583187996,0.3060155,65891.0,65890.0,0.003828]
[1727583190897,0.30581228,65891.0,65890.0,0.003828]
[1727583195916,0.30574501,65891.0,65890.0,0.003828]
[1727583199938,0.30474501,65891.0,65890.0,0.003828]
[1727583200143,0.30474501,65891.0,65890.0,0.000828]
[1727583200564,0.30474191,65891.0,65890.0,0.000828]
[1727583202482,0.32853428,65891.0,65890.0,0.000828]
[1727583203799,0.30474191,65891.0,65890.0,0.000828]
[1727583205754,0.45347816,65891.0,65890.0,0.000828]
[1727583205982,0.45547816,65891.0,65890.0,0.000828]
[1727583206181,0.45447816,65891.0,65890.0,0.000828]
[1727583206611,0.30774191,65891.0,65890.0,0.000828]
[1727583208725,0.30474191,65891.0,65890.0,0.000828]
[1727583211566,0.38456516,65891.0,65890.0,0.000828]
[1727583215419,0.38426431,65891.0,65890.0,0.000828]
[1727583215597,0.39226431,65891.0,65890.0,0.000828]
[1727583216056,0.39426431,65891.0,65890.0,0.000828]
[1727583216919,0.40805689,65891.0,65890.0,0.000828]
[1727583217173,0.38426431,65891.0,65890.0,0.000828]
[1727583217399,0.38726431,65891.0,65890.0,0.000828]
[1727583218304,0.39226431,65891.0,65890.0,0.000828]
[1727583218943,0.42841728,65891.0,65890.0,0.000828]
[1727583220269,0.42839476,65891.0,65890.0,0.000828]
[1727583221162,0.45218742,65891.0,65890.0,0.000828]
[1727583222346,0.55746557,65891.0,65890.0,0.000828]
[1727583222582,0.63037291,65891.0,65890.0,0.000828]
[1727583223027,0.73037291,65891.0,65890.0,0.000828]
[1727583223208,0.58394179,65891.0,65890.0,0.000828]
[1727583224095,0.58094179,65891.0,65890.0,0.000828]
[1727583224314,0.74032985,65891.0,65890.0,0.000828]
[1727583224813,0.74432985,65891.0,65890.0,0.000828]
[1727583224984,0.74221432,65891.0,65890.0,0.000828]
[1727583225203,0.74421432,65891.0,65890.0,0.000828]
[1727583225420,0.75272246,65891.0,65890.0,0.000828]
[1727583233348,0.98836007,65891.0,65890.0,0.000828]
[1727583233442,0.77572246,65891.0,65890.0,0.000828]
[1727583234605,0.98701626,65891.0,65890.0,0.000828]
[1727583234826,0.77516254,65891.0,65890.0,0.000828]
[1727583236180,0.79895624,65891.0,65890.0,0.000828]
[1727583236448,0.98701626,65891.0,65890.0,0.000828]
[1727583236681,0.77516254,65891.0,65890.0,0.000828]
[1727583239144,0.79895618,65891.0,65890.0,0.000828]
[1727583241366,0.77516254,65891.0,65890.0,0.000828]
[1727583242896,0.77519138,65891.0,65890.0,0.000828]
[1727583244607,0.79898554,65891.0,65890.0,0.000828]
[1727583245682,0.77519138,65891.0,65890.0,0.000828]
[1727583246108,0.67849138,65891.0,65890.0,0.000828]
[1727583247837,0.67849092,65891.0,65890.0,0.000828]
[1727583248038,0.52210286,65891.0,65890.0,0.000828]
[1727583250451,0.54589687,65891.0,65890.0,0.000828]
[1727583251318,0.52210286,65891.0,65890.0,0.000828]
[1727583254461,0.54589688,65891.0,65890.0,0.000828]
[1727583257619,0.54595143,65891.0,65890.0,0.000828]
[1727583258955,0.52215741,65891.0,65890.0,0.000828]
[1727583261931,0.54595142,65891.0,65890.0,0.000828]
[1727583262429,0.54598244,65891.0,65890.0,0.000828]
[1727583262887,0.7023705,65891.0,65890.0,0.000828]
[1727583263106,0.54598244,65891.0,65890.0,0.000828]
[1727583266434,0.69939677,65891.0,65890.0,0.000828]
[1727583267286,0.69952583,65891.0,65890.0,0.000828]
[1727583269244,0.67573182,65891.0,65890.0,0.000828]
[1727583272047,0.64422368,65891.0,65890.0,0.000828]
[1727583272261,0.51456054,65891.0,65890.0,0.000828]
[1727583272696,0.66805625,65891.0,65890.0,0.000828]
[1727583273144,0.51456054,65891.0,65890.0,0.000828]
[1727583277677,0.51456054,65891.0,65888.0,0.0767]
[1727583277678,0.15177,65889.0,65888.0,0.0767]
[1727583277903,0.67168408,65889.0,65888.0,0.0767]
[1727583278138,0.88381835,65889.0,65888.0,0.0767]
[1727583278599,0.67168408,65889.0,65888.0,0.0767]
[1727583279066,0.67268408,65889.0,65888.0,0.0767]
[1727583279292,0.73126386,65889.0,65888.0,0.0767]
[1727583279946,0.73326386,65889.0,65888.0,0.0767]
[1727583280164,0.52112959,65889.0,65888.0,0.0767]
[1727583281763,0.52112959,65889.0,65888.0,0.077527]
[1727583285865,0.54492329,65889.0,65888.0,0.077527]
[1727583287017,0.52129134,65889.0,65888.0,0.077527]
[1727583291402,0.545085,65889.0,65888.0,0.077527]
[1727583291624,0.52129134,65889.0,65888.0,0.077527]
[1727583294569,0.52129134,65889.0,65888.0,0.07722598]
[1727583294794,0.54508502,65889.0,65888.0,0.07600686]
[1727583298723,0.52129134,65889.0,65888.0,0.07600686]
[1727583301824,0.54508501,65889.0,65888.0,0.07600686]
[1727583302785,0.52129134,65889.0,65888.0,0.07600686]
[1727583305398,0.52126305,65889.0,65888.0,0.07600686]
[1727583307950,0.52291705,65889.0,65888.0,0.07600686]
[1727583308198,0.52291441,65889.0,65888.0,0.07600686]
[1727583310322,0.54670809,65889.0,65888.0,0.07600686]
[1727583311407,0.52291441,65889.0,65888.0,0.07600686]
[1727583318560,0.54670804,65889.0,65888.0,0.07600686]
[1727583321246,0.52291441,65889.0,65888.0,0.07600686]
[1727583323601,0.52291441,65889.0,65888.0,0.000827]
[1727583325736,0.5467088,65889.0,65888.0,0.000827]
[1727583325972,0.67930247,65889.0,65888.0,0.000827]
[1727583326231,0.82663183,65889.0,65888.0,0.000827]
[1727583326492,0.8888329,65889.0,65888.0,0.000827]
[1727583326934,0.67651548,65889.0,65888.0,0.000827]
[1727583328755,0.70031002,65889.0,65888.0,0.000827]
[1727583329682,0.69662755,65889.0,65888.0,0.000827]
[1727583331483,0.67283301,65889.0,65888.0,0.000827]
[1727583334530,0.67283512,65889.0,65888.0,0.000827]
[1727583338700,0.69662961,65889.0,65888.0,0.000827]
[1727583341300,0.67283512,65889.0,65888.0,0.000827]
[1727583348930,0.69662959,65889.0,65888.0,0.000827]
[1727583349378,0.69667706,65889.0,65888.0,0.000827]
[1727583350051,0.67288259,65889.0,65888.0,0.000827]
[1727583354339,0.67287185,65889.0,65888.0,0.000827]
[1727583359149,0.6728734,65889.0,65888.0,0.000827]
[1727583360291,0.55803829,65889.0,65888.0,0.000827]
[1727583361844,0.58183205,65889.0,65888.0,0.000827]
[1727583363082,0.55803829,65889.0,65888.0,0.000827]
[1727583365185,0.70799829,65889.0,65888.0,0.000827]
[1727583366272,0.73179261,65889.0,65888.0,0.000827]
[1727583366471,0.93902243,65889.0,65888.0,0.000827]
[1727583367342,0.93902488,65889.0,65888.0,0.000827]
[1727583368204,0.93903724,65889.0,65888.0,0.000827]
[1727583369261,0.91524292,65889.0,65888.0,0.000827]
[1727583369510,0.70801904,65889.0,65888.0,0.000827]
[1727583372357,0.406384,65889.0,65888.0,0.000827]
[1727583372576,0.70812944,65889.0,65888.0,0.000827]
[1727583375292,0.8645175,65889.0,65888.0,0.000827]
[1727583375539,0.91817967,65889.0,65888.0,0.000827]
[1727583376940,0.76179161,65889.0,65888.0,0.000827]
[1727583377150,0.55466783,65889.0,65888.0,0.000827]
[1727583378314,0.87701975,65889.0,65888.0,0.000827]
[1727583378776,0.76218464,65889.0,65888.0,0.000827]
[1727583379010,0.66942239,65889.0,65888.0,0.000827]
[1727583379529,0.82308069,65889.0,65888.0,0.000827]
[1727583379791,1.03067805,65889.0,65888.0,0.000827]
[1727583380252,1.05447258,65889.0,65888.0,0.000827]
[1727583381352,1.03067805,65889.0,65888.0,0.000827]
[1727583382514,0.87701975,65889.0,65888.0,0.000827]
[1727583384600,0.90081442,65889.0,65888.0,0.000827]
[1727583385527,0.87701975,65889.0,65888.0,0.000827]
[1727583390073,0.90081455,65889.0,65888.0,0.000827]
[1727583391450,0.87701975,65889.0,65888.0,0.000827]
[1727583391908,0.76218464,65889.0,65888.0,0.000827]
[1727583392130,0.66942239,65889.0,65888.0,0.000827]
[1727583392603,0.87701975,65889.0,65888.0,0.000827]
[1727583394604,0.82308144,65889.0,65888.0,0.000827]
[1727583395341,1.0306788,65889.0,65888.0,0.000827]
[1727583396234,0.52113856,65889.0,65888.0,0.000827]
[1727583396461,0.8229281,65889.0,65888.0,0.000827]
[1727583396684,1.03030924,65889.0,65888.0,0.000827]
[1727583397810,0.87664908,65889.0,65888.0,0.000827]
[1727583398744,0.90044371,65889.0,65888.0,0.000827]
[1727583401234,0.87687004,65889.0,65888.0,0.000827]
[1727583406193,0.87700056,65889.0,65888.0,0.000827]
[1727583408872,0.90079521,65889.0,65888.0,0.000827]
[1727583411056,0.90079537,65889.0,65888.0,0.000827]
[1727583411519,0.78596026,65889.0,65888.0,0.000827]
[1727583411759,0.90079537,65889.0,65888.0,0.000827]
[1727583412686,0.82318575,65889.0,65888.0,0.000827]
[1727583412855,1.03077201,65889.0,65888.0,0.000827]
[1727583416181,1.05456671,65889.0,65888.0,0.000827]
[1727583416418,0.90079542,65889.0,65888.0,0.000827]
[1727583416630,0.9397316,65889.0,65888.0,0.000827]
[1727583416847,0.78596031,65889.0,65888.0,0.000827]
[1727583417090,0.90079542,65889.0,65888.0,0.000827]
[1727583417300,0.87700072,65889.0,65888.0,0.000827]
[1727583420431,0.90079546,65889.0,65888.0,0.000827]
[1727583420634,0.90088678,65889.0,65888.0,0.000827]
[1727583421735,0.87709204,65889.0,65888.0,0.000827]
[1727583424331,0.87726664,65889.0,65888.0,0.000827]
[1727583424843,0.66952526,65889.0,65888.0,0.000827]
[1727583425058,0.87726664,65889.0,65888.0,0.000827]
[1727583429225,1.1302547,65889.0,65888.0,0.000827]
[1727583429738,0.97386664,65889.0,65888.0,0.000827]
[1727583430604,0.9976618,65889.0,65888.0,0.000827]
[1727583431296,0.97386664,65889.0,65888.0,0.000827]
[1727583431524,1.12762628,65889.0,65888.0,0.000827]
[1727583433947,1.12763546,65889.0,65888.0,0.000827]
[1727583437722,1.03103546,65889.0,65888.0,0.000827]
[1727583442730,1.03366719,65889.0,65888.0,0.000827]
[1727583442952,0.87727913,65889.0,65888.0,0.000827]
[1727583443872,0.82329169,65889.0,65888.0,0.000827]
[1727583444051,1.03104036,65889.0,65888.0,0.000827]
[1727583447823,1.05483547,65889.0,65888.0,0.000827]
[1727583448928,1.03104036,65889.0,65888.0,0.000827]
[1727583453489,1.03112261,65889.0,65888.0,0.000827]
[1727583456388,1.05491776,65889.0,65888.0,0.000827]
[1727583457570,1.03112261,65889.0,65888.0,0.000827]
[1727583460790,1.05491775,65889.0,65888.0,0.000827]
[1727583461917,1.03112261,65889.0,65888.0,0.000827]
[1727583467111,0.9162875,65889.0,65888.0,0.000827]
[1727583467207,1.03112261,65889.0,65888.0,0.000827]
[1727583469480,1.05491773,65889.0,65888.0,0.000827]
[1727583470624,1.03112261,65889.0,65888.0,0.000827]
[1727583473114,1.03118078,65889.0,65888.0,0.000827]
[1727583474051,0.87740498,65889.0,65888.0,0.000827]
[1727583475467,0.94431135,65889.0,65888.0,0.000827]
[1727583476387,0.87740498,65889.0,65888.0,0.000827]
[1727583477998,0.87703609,65889.0,65888.0,0.000827]
[1727583479598,0.90083125,65889.0,65888.0,0.000827]
[1727583481577,0.90074851,65889.0,65888.0,0.000827]
[1727583482464,0.7859134,65889.0,65888.0,0.000827]
[1727583482775,0.90074851,65889.0,65888.0,0.000827]
[1727583483492,0.87695335,65889.0,65888.0,0.000827]
[1727583484016,0.76211824,65889.0,65888.0,0.000827]
[1727583484251,0.66939472,65889.0,65888.0,0.000827]
[1727583484696,0.87695335,65889.0,65888.0,0.000827]
[1727583487635,0.76211824,65889.0,65888.0,0.000827]
[1727583487853,0.87695335,65889.0,65888.0,0.000827]
[1727583489392,0.52113856,65889.0,65888.0,0.000827]
[1727583492951,0.40630345,65889.0,65888.0,0.000827]
[1727583493173,0.306384,65889.0,65888.0,0.171127]
[1727583493629,0.66158765,65889.0,65888.0,0.23596022]
[1727583493842,0.306384,65889.0,65888.0,0.23596022]
[1727583494052,0.306384,65889.0,65888.0,0.171127]
[1727583494299,0.406384,65889.0,65888.0,0.23827545]
[1727583494526,0.406384,65889.0,65888.0,0.171127]
[1727583494745,0.406384,65889.0,65888.0,0.079727]
[1727583495398,0.43017744,65889.0,65888.0,0.079727]
[1727583496407,0.57845247,65889.0,65888.0,0.079727]
[1727583496616,0.55465903,65889.0,65888.0,0.079727]
[1727583499086,0.55465903,65889.0,65888.0,0.171127]
[1727583500910,0.57845226,65889.0,65888.0,0.171127]
[1727583501235,0.55465903,65889.0,65888.0,0.171127]
[1727583501467,0.69126489,65889.0,65888.0,0.171127]
[1727583504229,0.406384,65889.0,65888.0,0.171127]
[1727583504432,0.43017725,65889.0,65888.0,0.171127]
[1727583505383,0.406384,65889.0,65888.0,0.171127]
[1727583506628,0.55466363,65889.0,65888.0,0.171127]
[1727583508168,0.55464311,65889.0,65888.0,0.171127]
[1727583509100,0.55462871,65889.0,65888.0,0.171127]
[1727583513829,0.406384,65889.0,65888.0,0.171127]
[1727583514040,0.55480381,65889.0,65888.0,0.171127]
[1727583518856,0.55463348,65889.0,65888.0,0.171127]
[1727583519991,0.55463348,65889.0,65888.0,0.000827]
[1727583523969,0.69119692,65889.0,65888.0,0.000827]
[1727583524387,0.84758498,65889.0,65888.0,0.000827]
[1727583525250,0.69119692,65889.0,65888.0,0.000827]
[1727583525702,0.55463348,65889.0,65888.0,0.000827]
[1727583525916,0.71502214,65889.0,65888.0,0.000827]
[1727583527024,0.55463348,65889.0,65888.0,0.000827]
[1727583528366,0.76225823,65889.0,65888.0,0.000827]
[1727583528584,0.55466493,65889.0,65888.0,0.000827]
[1727583530226,0.57845926,65889.0,65888.0,0.000827]
[1727583531331,0.55466493,65889.0,65888.0,0.000827]
[1727583533366,0.55483875,65889.0,65888.0,0.000827]
[1727583538927,0.57863311,65889.0,65888.0,0.000827]
[1727583541495,0.72517738,65889.0,65888.0,0.000827]
[1727583541691,0.57863311,65889.0,65888.0,0.000827]
[1727583553963,0.55483875,65889.0,65888.0,0.000827]
[1727583557712,0.57863343,65889.0,65888.0,0.000827]
[1727583561389,0.57871263,65889.0,65888.0,0.000827]
[1727583571148,0.43017868,65889.0,65888.0,0.000827]
[1727583571371,0.57863845,65889.0,65888.0,0.000827]
[1727583572735,0.82342099,65889.0,65888.0,0.000827]
[1727583572969,0.87752256,65889.0,65888.0,0.000827]
[1727583573199,0.66967888,65889.0,65888.0,0.000827]
[1727583574400,0.72427671,65889.0,65888.0,0.000827]
[1727583577096,0.6094416,65889.0,65888.0,0.000827]
[1727583577305,0.66967888,65889.0,65888.0,0.000827]
[1727583578135,0.69347456,65889.0,65888.0,0.000827]
[1727583579216,0.66967888,65889.0,65888.0,0.000827]
[1727583580573,0.66906293,65889.0,65888.0,0.000827]
[1727583581274,0.69285854,65889.0,65888.0,0.000827]
[1727583583321,0.84645321,65889.0,65888.0,0.000827]
[1727583590448,0.8464533,65889.0,65888.0,0.000827]
[1727583597684,0.88162412,65889.0,65888.0,0.000827]
[1727583598128,0.8464533,65889.0,65888.0,0.000827]
[1727583599065,0.82265769,65889.0,65888.0,0.000827]
[1727583599809,0.84645324,65889.0,65888.0,0.000827]
[1727583600955,0.82265769,65889.0,65888.0,0.000827]
[1727583603911,0.82270275,65889.0,65888.0,0.000827]
[1727583604129,0.84649806,65889.0,65888.0,0.000827]
[1727583605238,0.82270275,65889.0,65888.0,0.000827]
[1727583608380,0.66913346,65889.0,65888.0,0.000827]
[1727583608602,0.84651734,65889.0,65888.0,0.000827]
[1727583608838,0.82272202,65889.0,65888.0,0.000827]
[1727583609334,0.66913346,65889.0,65888.0,0.000827]
[1727583609779,0.55429835,65889.0,65888.0,0.000827]
[1727583609998,0.66913346,65889.0,65888.0,0.000827]
[1727583612638,0.82273907,65889.0,65888.0,0.000827]
[1727583612888,0.66913346,65889.0,65888.0,0.000827]
[1727583613341,0.69292782,65889.0,65888.0,0.000827]
[1727583616232,0.84653343,65889.0,65888.0,0.000827]
[1727583616462,1.05425709,65889.0,65888.0,0.000827]
[1727583616679,0.84680484,65889.0,65888.0,0.000827]
[1727583617161,0.73196973,65889.0,65888.0,0.000827]
[1727583617402,0.84680484,65889.0,65888.0,0.000827]
[1727583618094,0.69319365,65889.0,65888.0,0.000827]
[1727583618357,0.66939929,65889.0,65888.0,0.000827]
[1727583621771,0.69319484,65889.0,65888.0,0.000827]
[1727583622924,0.66939929,65889.0,65888.0,0.000827]
[1727583624154,0.82303398,65889.0,65888.0,0.000827]
[1727583626222,0.94422798,65889.0,65888.0,0.000827]
[1727583626446,0.84682952,65889.0,65888.0,0.000827]
[1727583627379,0.82303398,65889.0,65888.0,0.000827]
[1727583630227,0.84682957,65889.0,65888.0,0.000827]
[1727583631351,0.82303398,65889.0,65888.0,0.000827]
[1727583632028,0.66939929,65889.0,65888.0,0.000827]
[1727583639065,0.82302398,65889.0,65888.0,0.000827]
[1727583639294,0.66939929,65889.0,65888.0,0.000827]
[1727583641829,0.69319457,65889.0,65888.0,0.000827]
[1727583642076,0.89394364,65889.0,65888.0,0.000827]
[1727583642313,1.18059589,65889.0,65888.0,0.000827]
[1727583642810,1.17959589,65889.0,65888.0,0.000827]
[1727583643047,1.16480061,65889.0,65888.0,0.000827]
[1727583643298,1.32118867,65889.0,65888.0,0.000827]
[1727583643754,1.31918867,65889.0,65888.0,0.000827]
[1727583643992,1.33018867,65889.0,65888.0,0.000827]
[1727583644214,1.31918867,65889.0,65888.0,0.000827]
[1727583644451,1.31018867,65889.0,65888.0,0.000827]
[1727583644694,1.33818867,65889.0,65888.0,0.000827]
[1727583645887,1.36198584,65889.0,65888.0,0.000827]
[1727583647449,1.33818867,65889.0,65888.0,0.000827]
[1727583648439,1.18641867,65889.0,65883.0,0.0079186]
[1727583648686,0.54141611,65884.0,65883.0,0.0079186]
[1727583648918,0.74419412,65884.0,65883.0,0.0079186]
[1727583650699,0.76799235,65884.0,65883.0,0.0079186]
[1727583651609,0.77999235,65884.0,65883.0,0.0079186]
[1727583651860,0.61001394,65884.0,65883.0,0.0079186]
[1727583652095,0.91083763,65884.0,65883.0,0.0079186]
[1727583652550,0.92383763,65884.0,65883.0,0.0079186]
[1727583653041,0.91383763,65884.0,65883.0,0.0079186]
[1727583654658,0.9333841,65884.0,65883.0,0.0079186]
[1727583654894,0.95718247,65884.0,65883.0,0.0079186]
[1727583655119,1.16219235,65884.0,65883.0,0.0079186]
[1727583655345,1.16019235,65884.0,65883.0,0.0079186]
[1727583656062,0.75607135,65884.0,65883.0,0.0079186]
[1727583656289,0.66589658,65884.0,65883.0,0.0079186]
[1727583659051,0.66589658,65884.0,65883.0,0.0087456]
[1727583663068,0.72049441,65884.0,65883.0,0.0087456]
[1727583663329,0.77624565,65884.0,65883.0,0.0087456]
[1727583663542,0.93263371,65884.0,65883.0,0.0087456]
[1727583664503,1.00943371,65884.0,65883.0,0.0087456]
[1727583664678,1.21444359,65884.0,65883.0,0.0087456]
[1727583665113,1.1902721,65884.0,65883.0,0.0087456]
[1727583665320,1.1952721,65884.0,65883.0,0.0087456]
[1727583665526,1.19714593,65884.0,65883.0,0.0087456]
[1727583666529,1.18414593,65884.0,65883.0,0.0087456]
[1727583666744,1.17314593,65884.0,65883.0,0.0087456]
[1727583667219,1.18514593,65884.0,65883.0,0.0087456]
[1727583667717,1.17314593,65884.0,65883.0,0.0087456]
[1727583667953,1.18714593,65884.0,65883.0,0.0087456]
[1727583668407,1.22494466,65884.0,65883.0,0.0087456]
[1727583668658,1.21094466,65884.0,65883.0,0.0087456]